fUSD/lending_fUSD_20260319
["ID","MTS","AMOUNT","RATE_DAILY","PERIOD"]
[408605221,1773935432492,-2155.88949691,8.453e-05,2]
[408605222,1773935432503,-1015.04698736,8.453e-05,2]
[408605223,1773935432513,-420.0,8.453e-05,2]
[408605230,1773935438261,-10209.45585484,8.453e-05,2]
[408605231,1773935438273,-1124.78779957,8.453e-05,2]
[408605232,1773935438284,-1179.06610352,8.453e-05,2]
[408605233,1773935438296,-1472.0365117,8.453e-05,2]
[408605234,1773935438428,-310.29328907,8.453e-05,2]
[408605235,1773935438440,-68999.99999996,8.453e-05,2]
[408605244,1773935439814,-276.871998,8.453e-05,2]
[408605245,1773935440122,-3450.0,8.453e-05,2]
[408605246,1773935440318,-246.72039492,8.453e-05,2]
[408605247,1773935440327,-94.48333837,8.47e-05,2]
[408605263,1773935445477,-1302.97179547,8.47e-05,2]
[408605264,1773935445489,-3984.34757301,8.47e-05,2]
[408605265,1773935445498,-500.0,8.477e-05,2]
[408605266,1773935445508,-310.27363011,8.49e-05,2]
[408605267,1773935445517,-500.0,8.565e-05,2]
[408605268,1773935445527,-500.50132648,8.667e-05,2]
[408605269,1773935445537,-500.0,8.667e-05,2]
[408605270,1773935445546,-500.6537405,8.667e-05,2]
[408605271,1773935445555,-500.0,8.667e-05,2]
[408605272,1773935445565,-574.42695522,8.667e-05,2]
[408605273,1773935445574,-500.0,8.667e-05,2]
[408605274,1773935445583,-502.08297344,8.667e-05,2]
[408605275,1773935445593,-500.0,8.667e-05,2]
[408605276,1773935445602,-503.97846773,8.667e-05,2]
[408605277,1773935445612,-429.3358411,8.667e-05,2]
[408605278,1773935445621,-6442.88514624,8.68e-05,2]
[408605279,1773935445631,-28787.09944441,8.703e-05,2]
[408605280,1773935445640,-457.24188603,8.861e-05,2]
[408605281,1773935445650,-500.0,8.981e-05,2]
[408605282,1773935445660,-1000.0,8.981e-05,2]
[408605283,1773935445669,-5838.24569422,9e-05,2]
[408605284,1773935445689,-877.92976007,9.025e-05,2]
[408605285,1773935445699,-3536.6,9.062e-05,2]
[408605286,1773935445709,-182.51,9.103e-05,2]
[408605287,1773935445719,-500.0,9.113e-05,2]
[408605288,1773935445729,-10000.0,9.123e-05,2]
[408605289,1773935445739,-1000.0,9.215e-05,2]
[408605290,1773935445748,-500.0,9.215e-05,2]
[408605291,1773935445758,-1000.0,9.215e-05,2]
[408605292,1773935445767,-500.0,9.215e-05,2]
[408605293,1773935445777,-314.09366289,9.253e-05,2]
[408605294,1773935446331,-4104.12939191,9.253e-05,2]
[408605295,1773935446341,-2000.0,9.269e-05,2]
[408605296,1773935446351,-200.0,9.394e-05,2]
[408605297,1773935446361,-5326.51044459,9.5e-05,3]
[408605298,1773935446506,-6884.7,9.5e-05,3]
[408605299,1773935446518,-329.773518,9.5e-05,3]
[408605300,1773935446820,-764.132,9.5e-05,3]
[408605301,1773935446832,-279.026,9.5e-05,3]
[408605335,1773935555902,10000.01,7.071e-05,2]
[408605336,1773935555930,10000.01,7.071e-05,2]
[408605337,1773935555957,10000.01,7.071e-05,2]
[408605338,1773935555984,10000.01,7.071e-05,2]
[408605339,1773935556010,10000.01,7.071e-05,2]
[408605340,1773935556037,10000.01,7.071e-05,2]
[408605341,1773935556066,10000.01,7.071e-05,2]
[408605342,1773935556093,10000.01,7.071e-05,2]
[408605343,1773935556119,10000.01,7.071e-05,2]
[408605344,1773935556148,10000.01,7.071e-05,2]
[408605345,1773935666634,-150.0,7.07e-05,2]
[408605346,1773935666663,-300.0,7.07e-05,2]
[408605347,1773935701109,300.0,7.07e-05,2]
[408605348,1773935701594,1200.0,7.07e-05,2]
[408605350,1773935761263,300.0,7.07e-05,2]
[408605351,1773935765203,250.0,7.071e-05,2]
[408605352,1773935774016,150.51954285,7.07e-05,2]
[408605353,1773935823270,300.0,7.07e-05,2]
[408605354,1773935823571,150.0,7.07e-05,2]
[408605355,1773935850961,500.0,7.07e-05,2]
[408605356,1773935851005,500.0,7.07e-05,2]
[408605357,1773935851053,500.0,7.07e-05,2]
[408605358,1773935851097,500.0,7.07e-05,2]
[408605359,1773935851144,500.0,7.07e-05,2]
[408605360,1773935851196,500.0,7.07e-05,2]
[408605361,1773935851241,500.0,7.07e-05,2]
[408605362,1773935851283,500.0,7.07e-05,2]
[408605363,1773935851330,500.0,7.07e-05,2]
[408605364,1773935851368,500.0,7.07e-05,2]
[408605365,1773935851412,500.0,7.07e-05,2]
[408605366,1773935851499,500.0,7.07e-05,2]
[408605367,1773935851543,500.0,7.07e-05,2]
[408605368,1773935851584,500.0,7.07e-05,2]
[408605369,1773935851632,349.49045715,7.07e-05,2]
[408605370,1773935851662,150.50954285,7.07e-05,2]
[408605371,1773935852034,500.0,7.07e-05,2]
[408605372,1773935852077,500.0,7.07e-05,2]
[408605373,1773935852126,500.0,7.07e-05,2]
[408605374,1773935852171,500.0,7.07e-05,2]
[408605375,1773935852226,500.0,7.07e-05,2]
[408605376,1773935852287,500.0,7.07e-05,2]
[408605377,1773935852336,500.0,7.07e-05,2]
[408605378,1773935852396,500.0,7.07e-05,2]
[408605379,1773935852458,500.0,7.07e-05,2]
[408605380,1773935852505,500.0,7.07e-05,2]
[408605381,1773935852560,500.0,7.07e-05,2]
[408605382,1773935852609,500.0,7.07e-05,2]
[408605383,1773935852666,500.0,7.07e-05,2]
[408605384,1773935852715,500.0,7.07e-05,2]
[408605385,1773935852766,500.0,7.07e-05,2]
[408605386,1773935878704,500.0,7.07e-05,2]
[408605387,1773935878753,500.0,7.07e-05,2]
[408605388,1773935878803,500.0,7.07e-05,2]
[408605389,1773935878851,500.0,7.07e-05,2]
[408605390,1773935878897,349.50045715,7.07e-05,2]
[408605391,1773935878926,150.49954285,7.07e-05,2]
[408605392,1773935878968,500.0,7.07e-05,2]
[408605393,1773935879006,500.0,7.07e-05,2]
[408605394,1773935879051,500.0,7.07e-05,2]
[408605395,1773935879105,500.0,7.07e-05,2]
[408605396,1773935879171,500.0,7.07e-05,2]
[408605397,1773935879226,500.0,7.07e-05,2]
[408605398,1773935879269,500.0,7.07e-05,2]
[408605399,1773935879320,500.0,7.07e-05,2]
[408605400,1773935879371,500.0,7.07e-05,2]
[408605401,1773935879421,500.0,7.07e-05,2]
[408605402,1773935879468,500.0,7.07e-05,2]
[408605403,1773935879532,500.0,7.07e-05,2]
[408605404,1773935879586,500.0,7.07e-05,2]
[408605405,1773935879632,500.0,7.07e-05,2]
[408605406,1773935879680,500.0,7.07e-05,2]
[408605407,1773935879725,500.0,7.07e-05,2]
[408605408,1773935879832,500.0,7.07e-05,2]
[408605409,1773935879879,500.0,7.07e-05,2]
[408605410,1773935879934,500.0,7.07e-05,2]
[408605411,1773935879983,349.51045715,7.07e-05,2]
[408605412,1773935880012,150.48954285,7.07e-05,2]
[408605413,1773935880051,500.0,7.07e-05,2]
[408605414,1773935880570,277.69058413,7.07e-05,2]
[408605415,1773935889843,-200.0,7e-05,2]
[408605416,1773935890326,400.0,8.8e-05,3]
[408605417,1773935892502,700.0,8.9e-05,3]
[408605418,1773935892780,-8398.25574583,7.071e-05,2]
[408605419,1773935892888,-10000.01,7.071e-05,2]
[408605420,1773935894596,900.0,9e-05,3]
[408605422,1773936065475,-300.0,7.069e-05,2]
[408605423,1773936080632,-1200.0,7.07e-05,2]
[408605424,1773936080664,-150.0,7.07e-05,2]
[408605425,1773936080703,-300.0,7.07e-05,2]
[408605426,1773936080742,-210.0,7.07e-05,2]
[408605427,1773936080774,-2191.20161532,7.07e-05,2]
[408605428,1773936080876,-1897.60676936,7.07e-05,2]
[408605429,1773936091493,4381.212,6.93e-05,2]
[408605430,1773936091623,168.383,6.93e-05,2]
[408605431,1773936142052,10000.01,7.061e-05,2]
[408605432,1773936142077,10000.01,7.061e-05,2]
[408605433,1773936142102,10000.01,7.061e-05,2]
[408605434,1773936142127,10000.01,7.061e-05,2]
[408605435,1773936142152,4453.33403456,7.061e-05,2]
[408605436,1773936175068,368.4552,6.97e-05,2]
[408605437,1773936181166,300.0,7.069e-05,2]
[408605438,1773936182056,160.0,7.069e-05,2]
[408605439,1773936182887,300.0,7.069e-05,2]
[408605440,1773936183473,150.0,7.069e-05,2]
[408605441,1773936189443,1065.50192028,7.07e-05,2]
[408605444,1773936241348,300.0,7.069e-05,2]
[408605445,1773936254054,200.0,7e-05,2]
[408605446,1773936301147,300.0,7.069e-05,2]
[408605447,1773936301394,1200.0,7.069e-05,2]
[408605448,1773936305474,156.0,7e-05,3]
[408605449,1773936305778,157.0,7e-05,3]
[408605450,1773936306042,157.0,8e-05,3]
[408605451,1773936306324,157.0,9e-05,3]
[408605452,1773936361210,300.0,7.07e-05,2]
[408605453,1773936362475,150.0,7.07e-05,2]
[408605454,1773936363214,300.0,7.07e-05,2]
[408605455,1773936363490,2691.17,3.877e-05,2]
[408605456,1773936363719,2691.17,4.081e-05,2]
[408605457,1773936364139,2691.17,4.285e-05,2]
[408605458,1773936364364,1176.5,4.489e-05,2]
[408605459,1773936364391,1514.67,4.489e-05,2]
[408605460,1773936364572,2691.17,4.693e-05,2]
[408605461,1773936365183,500.0,7.07e-05,2]
[408605462,1773936365477,500.0,7.07e-05,2]
[408605463,1773936365527,2691.17,4.897e-05,2]
[408605464,1773936365587,500.0,7.07e-05,2]
[408605465,1773936365621,500.0,7.07e-05,2]
[408605466,1773936365653,1103.0,5.101e-05,2]
[408605467,1773936365678,1588.17,5.101e-05,2]
[408605468,1773936365738,497.63089001,7.07e-05,2]
[408605469,1773936365804,2691.17,5.305e-05,2]
[408605470,1773936365998,2691.17,5.509e-05,2]
[408605471,1773936366226,2531.86910999,5.713e-05,2]
[408605472,1773936366263,159.30089001,5.713e-05,2]
[408605473,1773936366426,2691.17,5.917e-05,2]
[408605474,1773936366633,2691.17,6.121e-05,2]
[408605475,1773936366872,2691.17,6.325e-05,2]
[408605476,1773936367080,2691.17,6.529e-05,2]
[408605477,1773936367284,2691.17,6.733e-05,2]
[408605478,1773936367501,2691.17,6.937e-05,2]
[408605479,1773936377954,510.06317257,7.07e-05,2]
[408605480,1773936378005,510.06317257,7.07e-05,2]
[408605481,1773936378056,510.06317257,7.07e-05,2]
[408605482,1773936378111,396.31048229,7.07e-05,2]
[408605483,1773936378142,113.75269028,7.07e-05,2]
[408605484,1773936378181,510.06317257,7.07e-05,2]
[408605485,1773936378224,510.06317257,7.07e-05,2]
[408605486,1773936378270,510.06317257,7.07e-05,2]
[408605487,1773936378311,510.06317257,7.07e-05,2]
[408605488,1773936378358,510.06317257,7.07e-05,2]
[408605489,1773936378422,510.06317257,7.07e-05,2]
[408605490,1773936378480,510.06317257,7.07e-05,2]
[408605491,1773936378529,510.06317257,7.07e-05,2]
[408605492,1773936378591,510.06317257,7.07e-05,2]
[408605493,1773936378644,510.06317257,7.07e-05,2]
[408605494,1773936378691,510.06317257,7.07e-05,2]
[408605495,1773936378743,510.06317257,7.07e-05,2]
[408605496,1773936378791,510.06317257,7.07e-05,2]
[408605497,1773936378838,510.06317257,7.07e-05,2]
[408605498,1773936378896,510.06317257,7.07e-05,2]
[408605499,1773936378949,510.06317257,7.07e-05,2]
[408605500,1773936379010,510.06317257,7.07e-05,2]
[408605501,1773936379120,510.06317257,7.07e-05,2]
[408605502,1773936379180,510.06317257,7.07e-05,2]
[408605503,1773936379235,195.05703089,7.07e-05,2]
[408605504,1773936381400,1346.0,8.606e-05,5]
[408605505,1773936407132,-315.00614168,7.07e-05,2]
[408605506,1773936407162,-53.99385832,7.07e-05,2]
[408605508,1773936439891,600.0,7e-05,2]
[408605509,1773936442054,1300.0,8.8e-05,3]
[408605510,1773936444145,1900.0,8.9e-05,3]
[408605511,1773936446223,2600.0,9e-05,3]
[408605515,1773936631745,-150.0,7.069e-05,2]
[408605516,1773936631754,-300.0,7.069e-05,2]
[408605517,1773936631764,-544.88176241,7.069e-05,2]
[408605518,1773936631976,-655.11823759,7.069e-05,2]
[408605520,1773936631986,-210.0,7.069e-05,2]
[408605521,1773936631995,-250.0,7.07e-05,2]
[408605522,1773936632005,-456.06931425,7.07e-05,2]
[408605523,1773936632015,-510.06317257,7.07e-05,2]
[408605524,1773936632024,-510.06317257,7.07e-05,2]
[408605525,1773936632034,-510.06317257,7.07e-05,2]
[408605526,1773936632043,-510.06317257,7.07e-05,2]
[408605527,1773936632053,-510.06317257,7.07e-05,2]
[408605529,1773936632062,-510.06317257,7.07e-05,2]
[408605530,1773936632071,-510.06317257,7.07e-05,2]
[408605532,1773936632084,-510.06317257,7.07e-05,2]
[408605534,1773936632093,-510.06317257,7.07e-05,2]
[408605536,1773936632102,-510.06317257,7.07e-05,2]
[408605538,1773936632112,-510.06317257,7.07e-05,2]
[408605540,1773936632121,-510.06317257,7.07e-05,2]
[408605542,1773936632131,-510.06317257,7.07e-05,2]
[408605544,1773936632140,-510.06317257,7.07e-05,2]
[408605546,1773936632150,-510.06317257,7.07e-05,2]
[408605547,1773936632160,-510.06317257,7.07e-05,2]
[408605548,1773936632170,-510.06317257,7.07e-05,2]
[408605549,1773936632179,-510.06317257,7.07e-05,2]
[408605550,1773936632189,-510.06317257,7.07e-05,2]
[408605551,1773936632198,-510.06317257,7.07e-05,2]
[408605552,1773936632208,-510.06317257,7.07e-05,2]
[408605553,1773936632217,-510.06317257,7.07e-05,2]
[408605554,1773936632227,-510.06317257,7.07e-05,2]
[408605555,1773936632236,-510.06317257,7.07e-05,2]
[408605556,1773936632245,-510.06317257,7.07e-05,2]
[408605557,1773936632255,-510.06317257,7.07e-05,2]
[408605558,1773936632264,-510.06317257,7.07e-05,2]
[408605559,1773936632273,-510.06317257,7.07e-05,2]
[408605560,1773936632283,-510.06317257,7.07e-05,2]
[408605561,1773936632292,-510.06317257,7.07e-05,2]
[408605562,1773936632301,-510.06317257,7.07e-05,2]
[408605563,1773936632311,-510.06317257,7.07e-05,2]
[408605564,1773936632320,-510.06317257,7.07e-05,2]
[408605565,1773936632333,-510.06317257,7.07e-05,2]
[408605566,1773936632344,-510.06317257,7.07e-05,2]
[408605567,1773936632355,-510.06317257,7.07e-05,2]
[408605568,1773936632366,-510.06317257,7.07e-05,2]
[408605569,1773936632380,-510.06317257,7.07e-05,2]
[408605570,1773936632394,-510.06317257,7.07e-05,2]
[408605571,1773936632403,-510.06317257,7.07e-05,2]
[408605572,1773936632413,-510.06317257,7.07e-05,2]
[408605573,1773936632422,-510.06317257,7.07e-05,2]
[408605574,1773936632434,-510.06317257,7.07e-05,2]
[408605575,1773936632444,-510.06317257,7.07e-05,2]
[408605576,1773936632453,-194.92345239,7.07e-05,2]
[408605577,1773936632463,-500.0,7.07e-05,2]
[408605578,1773936632473,-500.0,7.07e-05,2]
[408605579,1773936632482,-500.0,7.07e-05,2]
[408605580,1773936632492,-500.0,7.07e-05,2]
[408605581,1773936632502,-500.0,7.07e-05,2]
[408605582,1773936632512,-500.0,7.07e-05,2]
[408605583,1773936632521,-500.0,7.07e-05,2]
[408605584,1773936632531,-559.68858094,7.07e-05,2]
[408605585,1773936632541,-500.0,7.07e-05,2]
[408605586,1773936632551,-500.0,7.07e-05,2]
[408605587,1773936632561,-500.0,7.07e-05,2]
[408605588,1773936632570,-307.77077871,7.07e-05,2]
[408605589,1773936632580,-500.0,7.07e-05,2]
[408605590,1773936632589,-500.0,7.07e-05,2]
[408605591,1773936632599,-444.78820382,7.07e-05,2]
[408605592,1773936632608,-500.0,7.07e-05,2]
[408605593,1773936632618,-500.0,7.07e-05,2]
[408605594,1773936632627,-500.0,7.07e-05,2]
[408605595,1773936632636,-508.72195271,7.07e-05,2]
[408605596,1773936632646,-500.0,7.07e-05,2]
[408605597,1773936632655,-500.0,7.07e-05,2]
[408605598,1773936632665,-500.0,7.07e-05,2]
[408605599,1773936632674,-500.0,7.07e-05,2]
[408605600,1773936632684,-500.0,7.07e-05,2]
[408605601,1773936632693,-500.0,7.07e-05,2]
[408605602,1773936632703,-500.0,7.07e-05,2]
[408605603,1773936632712,-500.0,7.07e-05,2]
[408605604,1773936633015,-500.0,7.07e-05,2]
[408605605,1773936633026,-500.0,7.07e-05,2]
[408605606,1773936633036,-500.0,7.07e-05,2]
[408605607,1773936633045,-351.23649397,7.07e-05,2]
[408605608,1773936633055,-500.0,7.07e-05,2]
[408605609,1773936633070,-366.12709315,7.07e-05,2]
[408605610,1773936633082,-72226.25473618,7.071e-05,2]
[408605614,1773936638313,-363.22806146,7.071e-05,2]
[408605615,1773936638324,-931.64714036,7.071e-05,2]
[408605616,1773936638336,-1202.46666997,7.071e-05,2]
[408605617,1773936638573,-1855.85595096,7.071e-05,2]
[408605626,1773936640227,-668492.17319524,7.071e-05,2]
[408605627,1773936640237,-250.0,7.084e-05,2]
[408605628,1773936640248,-2691.17,7.141e-05,2]
[408605629,1773936640257,-1000.0,7.17e-05,2]
[408605630,1773936640266,-1000.0,7.17e-05,2]
[408605631,1773936640276,-5359.85,7.184e-05,2]
[408605632,1773936640285,-16913.8,7.32e-05,2]
[408605633,1773936640295,-2691.17,7.345e-05,2]
[408605634,1773936640304,-2691.17,7.549e-05,2]
[408605635,1773936640314,-17228.93,7.671e-05,2]
[408605636,1773936640323,-2691.17,7.753e-05,2]
[408605637,1773936640334,-250.0,7.762e-05,2]
[408605638,1773936640343,-250.0,7.776e-05,2]
[408605639,1773936640356,-255.0,7.776e-05,2]
[408605640,1773936640368,-420.0,7.776e-05,2]
[408605641,1773936640377,-1680.0,7.776e-05,2]
[408605642,1773936640387,-1600.0,7.789e-05,2]
[408605643,1773936640398,-359.96,7.904e-05,2]
[408605644,1773936640408,-9999.99,7.904e-05,2]
[408605645,1773936640417,-150.99,7.904e-05,2]
[408605646,1773936640429,-200.0,7.911e-05,2]
[408605647,1773936640439,-8565.75555911,8.048e-05,2]
[408605648,1773936640448,-500.0,8.048e-05,2]
[408605649,1773936640457,-500.0,8.048e-05,2]
[408605650,1773936640467,-500.0,8.048e-05,2]
[408605651,1773936640477,-500.0,8.048e-05,2]
[408605652,1773936640486,-500.0,8.048e-05,2]
[408605653,1773936640496,-500.0,8.048e-05,2]
[408605654,1773936640506,-500.0,8.048e-05,2]
[408605655,1773936640515,-500.0,8.048e-05,2]
[408605656,1773936640524,-500.0,8.048e-05,2]
[408605657,1773936640534,-500.0,8.048e-05,2]
[408605658,1773936640543,-500.0,8.048e-05,2]
[408605659,1773936640553,-500.0,8.048e-05,2]
[408605660,1773936640563,-201.67442622,8.048e-05,2]
[408605661,1773936640575,-151.0,8.048e-05,2]
[408605662,1773936640584,-8882.6885148,8.103e-05,2]
[408605663,1773936640593,-500.0,8.103e-05,2]
[408605664,1773936640603,-9331.15465821,8.158e-05,2]
[408605665,1773936640613,-500.0,8.219e-05,2]
[408605666,1773936640622,-392.02715689,8.219e-05,2]
[408605667,1773936640631,-1919.11,8.219e-05,2]
[408605668,1773936640641,-1922.29558694,8.356e-05,2]
[408605669,1773936640651,-320.38259782,8.431e-05,2]
[408605670,1773936640660,-320.38259782,8.515e-05,2]
[408605671,1773936640669,-223.1461139,8.545e-05,2]
[408605672,1773936640679,-433.0,8.554e-05,2]
[408605673,1773936640688,-300.0,8.554e-05,2]
[408605674,1773936640697,-2351.0,8.554e-05,2]
[408605675,1773936640708,-320.38259782,8.598e-05,2]
[408605676,1773936640717,-155.0,8.605e-05,2]
[408605677,1773936640727,-887691.75993016,8.606e-05,2]
[408605678,1773936640761,-612308.24006984,8.606e-05,2]
[408605679,1773936640772,-32974.6857,8.606e-05,2]
[408605680,1773936640782,-792.4404,8.606e-05,2]
[408605681,1773936640791,-151.0,8.696e-05,2]
[408605682,1773936640800,-151.0,8.696e-05,2]
[408605683,1773936640809,-232402.8583789,8.706e-05,2]
[408605684,1773936640819,-39685.8243869,8.706e-05,2]
[408605685,1773936640828,-16373.2236794,8.706e-05,2]
[408605686,1773936640839,-153.320739,8.706e-05,2]
[408605687,1773936640848,-193.975735,8.706e-05,2]
[408605688,1773936640858,-181.333066,8.706e-05,2]
[408605689,1773936640867,-181.333066,8.706e-05,2]
[408605690,1773936640876,-181.333066,8.706e-05,2]
[408605691,1773936640885,-181.333066,8.706e-05,2]
[408605692,1773936640895,-1600.0,8.763e-05,2]
[408605693,1773936640904,-788.74,8.797e-05,2]
[408605694,1773936640914,-157.0,9e-05,3]
[408605695,1773936640923,-357.36,9.034e-05,2]
[408605696,1773936640933,-5668.9,9.041e-05,2]
[408605697,1773936640942,-166.66,9.06e-05,2]
[408605698,1773936640951,-1000.0,9.191e-05,2]
[408605699,1773936640960,-166.66,9.359e-05,2]
[408605700,1773936640969,-1000.0,9.373e-05,2]
[408605701,1773936640979,-662.0,9.409e-05,2]
[408605702,1773936640988,-717.0,9.409e-05,2]
[408605703,1773936640998,-155.0,9.466e-05,2]
[408605704,1773936641007,-160581.68778735,9.5e-05,3]
[408605705,1773936641017,-181.333066,9.5e-05,2]
[408605706,1773936641027,-181.333066,9.5e-05,2]
[408605707,1773936641036,-181.333066,9.5e-05,2]
[408605708,1773936641045,-181.333066,9.5e-05,2]
[408605709,1773936641054,-450.77764584,9.528e-05,2]
[408605710,1773936641063,-500.0,9.528e-05,2]
[408605711,1773936641074,-166.66,9.658e-05,2]
[408605712,1773936641085,-1549.0,9.701e-05,5]
[408605713,1773936641094,-1600.0,9.736e-05,2]
[408605714,1773936641103,-39685.8243869,9.799e-05,2]
[408605715,1773936641113,-232402.8583789,9.838e-05,2]
[408605716,1773936641122,-181.333066,9.838e-05,2]
[408605717,1773936641131,-181.333066,9.838e-05,2]
[408605718,1773936641140,-181.333066,9.838e-05,2]
[408605719,1773936641149,-181.333066,9.838e-05,2]
[408605720,1773936641164,-170.68,9.847e-05,2]
[408605721,1773936641178,-166.66,9.957e-05,2]
[408605722,1773936641188,-1328.0,9.971e-05,5]
[408605723,1773936641197,-152.55582968,0.0001,2]
[408605724,1773936641206,-954.5448128,0.0001,2]
[408605725,1773936641216,-2365.90605343,0.0001,2]
[408605726,1773936641225,-2141.71209235,0.0001,2]
[408605727,1773936641235,-2340.24053142,0.0001,2]
[408605728,1773936641244,-2590.1000146,0.0001,2]
[408605729,1773936641253,-431.68005996,0.0001,2]
[408605730,1773936641263,-500.0,0.0001,2]
[408605731,1773936641271,-500.0,0.0001,2]
[408605732,1773936641280,-500.0,0.0001,2]
[408605733,1773936641291,-500.0,0.0001,2]
[408605734,1773936641299,-532.10249534,0.0001,2]
[408605735,1773936641309,-151.0,0.0001,2]
[408605736,1773936641318,-151.0,0.0001,2]
[408605737,1773936641327,-151.0,0.0001,2]
[408605738,1773936641337,-151.0,0.0001,2]
[408605739,1773936641347,-151.0,0.0001,2]
[408605740,1773936641360,-500.0,0.0001,2]
[408605741,1773936641369,-151.0,0.0001,2]
[408605742,1773936641379,-200.0,0.0001,2]
[408605743,1773936641388,-500.0,0.0001,2]
[408605744,1773936641399,-151.0,0.0001,2]
[408605745,1773936641408,-151.0,0.0001,2]
[408605746,1773936641417,-151.0,0.0001,2]
[408605747,1773936641427,-500.0,0.0001,2]
[408605748,1773936641436,-151.0,0.0001,2]
[408605749,1773936641446,-500.0,0.0001,2]
[408605750,1773936641456,-151.0,0.0001,2]
[408605751,1773936641466,-528.30089606,0.0001,2]
[408605752,1773936641476,-151.0,0.0001,2]
[408605753,1773936641485,-151.0,0.0001,2]
[408605754,1773936641495,-151.0,0.0001,2]
[408605755,1773936641505,-151.0,0.0001,2]
[408605756,1773936641514,-151.0,0.0001,2]
[408605757,1773936641526,-151.0,0.0001,2]
[408605758,1773936641536,-151.0,0.0001,2]
[408605759,1773936641545,-151.0,0.0001,2]
[408605760,1773936641559,-151.0,0.0001,2]
[408605761,1773936641568,-151.0,0.0001,2]
[408605762,1773936641578,-161.5334,0.0001,2]
[408605763,1773936641590,-161.5334,0.0001,2]
[408605764,1773936641600,-161.5334,0.0001,2]
[408605765,1773936641609,-151.0,0.0001,2]
[408605766,1773936641619,-151.0,0.0001,2]
[408605767,1773936641629,-151.0,0.0001,2]
[408605768,1773936641639,-151.0,0.0001,2]
[408605769,1773936641649,-151.0,0.0001,2]
[408605770,1773936641659,-151.0,0.0001,2]
[408605771,1773936641669,-151.0,0.0001,2]
[408605772,1773936641678,-151.0,0.0001,2]
[408605773,1773936641688,-151.0,0.0001,2]
[408605774,1773936641697,-151.0,0.0001,2]
[408605775,1773936641707,-151.0,0.0001,2]
[408605776,1773936641716,-151.0,0.0001,2]
[408605777,1773936641726,-151.0,0.0001,2]
[408605778,1773936641748,-338.0,0.0001,2]
[408605779,1773936641762,-338.0,0.0001,2]
[408605780,1773936641777,-338.67985043,0.0001,2]
[408605781,1773936641791,-544.03320051,0.0001,2]
[408605782,1773936641804,-157.0,0.00010083,3]
[408605783,1773936641815,-1261.0,0.00010087,2]
[408605784,1773936641827,-414.0,0.00010087,2]
[408605785,1773936641841,-3758.0,0.00010087,2]
[408605786,1773936641855,-1546.0,0.000102,3]
[408605787,1773936641867,-165.541,0.00010231,2]
[408605788,1773936641880,-150.0,0.00010231,2]
[408605789,1773936641893,-1044.0,0.00010231,2]
[408605790,1773936641907,-3512.0,0.00010231,2]
[408605791,1773936641920,-633.959,0.00010231,2]
[408605792,1773936641933,-1344.0,0.00010231,2]
[408605793,1773936641945,-166.66,0.00010256,2]
[408605794,1773936641957,-2000.0,0.00010299,2]
[408605795,1773936641969,-5533.0,0.000103,5]
[408605796,1773936641979,-155.0,0.00010326,2]
[408605797,1773936641990,-5125.74025062,0.00010326,2]
[408605798,1773936642002,-200.0,0.00010548,2]
[408605799,1773936642014,-166.66,0.00010555,2]
[408605800,1773936642026,-3653.3600217,0.00010581,2]
[408605801,1773936642038,-10000.02,0.00010602,2]
[408605802,1773936642050,-1600.0,0.0001071,2]
[408605803,1773936642062,-357.62,0.0001076,2]
[408605804,1773936642074,-3718.15494703,0.00010802,2]
[408605805,1773936642087,-355.8455,0.00010877,2]
[408605806,1773936642099,-291.102894,0.00010877,2]
[408605807,1773936642112,-486.585862,0.00010877,2]
[408605808,1773936642126,-461.797694,0.00010877,2]
[408605809,1773936642138,-202.962839,0.00010877,2]
[408605810,1773936642150,-295.907011,0.00010877,2]
[408605811,1773936642163,-195.991628,0.00010877,2]